fUSD/lending_fUSD_20250806
["ID","MTS","AMOUNT","RATE_DAILY","PERIOD"]
[377641510,1754472664159,-401.26271476,0.0003315,14]
[377641511,1754472664170,-400.0,0.0003315,14]
[377641512,1754472664180,-400.0,0.0003315,14]
[377641513,1754472664190,-400.0,0.0003315,14]
[377641514,1754472664199,-400.0,0.0003315,14]
[377641515,1754472664209,-1195.13,0.0003315,14]
[377641516,1754472664219,-490.64,0.0003315,14]
[377641517,1754472664229,-400.0,0.0003315,14]
[377641518,1754472664239,-3291.23,0.0003315,14]
[377641519,1754472664248,-400.0,0.0003315,14]
[377641520,1754472664258,-400.0,0.0003315,14]
[377641521,1754472664267,-2029.19,0.0003315,14]
[377641522,1754472664280,-1045.87,0.0003315,14]
[377641523,1754472664291,-400.0,0.0003315,14]
[377641524,1754472664302,-1112.77,0.0003315,14]
[377641525,1754472664311,-400.0,0.0003315,14]
[377641526,1754472664320,-400.0,0.0003315,14]
[377641527,1754472664330,-969.0,0.0003315,14]
[377641528,1754472664340,-855.57,0.0003315,14]
[377641529,1754472664351,-400.0,0.0003315,14]
[377641530,1754472664362,-522.9,0.0003315,14]
[377641531,1754472664373,-400.0,0.0003315,14]
[377641532,1754472664382,-567.98,0.0003315,14]
[377641533,1754472664392,-704.73,0.0003315,14]
[377641534,1754472664401,-1710.63,0.0003315,14]
[377641535,1754472664411,-400.0,0.0003315,14]
[377641536,1754472664422,-1952.49,0.0003315,14]
[377641537,1754472664431,-400.0,0.0003315,14]
[377641538,1754472664442,-400.0,0.0003315,14]
[377641539,1754472664452,-1742.7,0.0003315,14]
[377641540,1754472664461,-400.0,0.0003315,14]
[377641541,1754472664472,-400.0,0.0003315,14]
[377641542,1754472664483,-1009.73,0.0003315,14]
[377641543,1754472664493,-400.0,0.0003315,14]
[377641544,1754472664503,-400.0,0.0003315,14]
[377641545,1754472664513,-596.46,0.0003315,14]
[377641546,1754472664523,-400.0,0.0003315,14]
[377641547,1754472664533,-1589.35,0.0003315,14]
[377641548,1754472664543,-556.42,0.0003315,14]
[377641549,1754472664553,-1936.66,0.0003315,14]
[377641550,1754472664563,-400.0,0.0003315,14]
[377641551,1754472664573,-1506.0,0.0003315,14]
[377641552,1754472664583,-400.0,0.0003315,14]
[377641553,1754472664592,-459.9,0.0003315,14]
[377641554,1754472664601,-400.0,0.0003315,14]
[377641555,1754472664611,-400.0,0.0003315,14]
[377641556,1754472664620,-400.0,0.0003315,14]
[377641557,1754472664630,-400.0,0.0003315,14]
[377641558,1754472664639,-1221.87,0.0003315,14]
[377641559,1754472664649,-400.0,0.0003315,14]
[377641560,1754472664659,-400.0,0.0003315,14]
[377641561,1754472664670,-795.52,0.0003315,14]
[377641562,1754472664680,-2962.89,0.0003315,14]
[377641563,1754472664692,-1398.21,0.0003315,14]
[377641564,1754472664701,-400.0,0.0003315,14]
[377641565,1754472664711,-1284.76,0.0003315,14]
[377641566,1754472664720,-400.0,0.0003315,14]
[377641567,1754472664730,-400.0,0.0003315,14]
[377641568,1754472664739,-400.0,0.0003315,14]
[377641569,1754472664750,-1000.88,0.0003315,14]
[377641570,1754472664760,-885.84,0.0003315,14]
[377641571,1754472664769,-1118.6,0.0003315,14]
[377641572,1754472664779,-400.0,0.0003315,14]
[377641573,1754472664788,-400.0,0.0003315,14]
[377641574,1754472664798,-2483.76,0.0003315,14]
[377641575,1754472664808,-400.0,0.0003315,14]
[377641576,1754472664818,-1076.18,0.0003315,14]
[377641577,1754472664827,-400.0,0.0003315,14]
[377641578,1754472664836,-400.0,0.0003315,14]
[377641579,1754472664846,-2041.0,0.0003315,14]
[377641580,1754472664855,-2188.55,0.0003315,14]
[377641581,1754472664865,-484.96,0.0003315,14]
[377641582,1754472664875,-400.0,0.0003315,14]
[377641583,1754472664885,-2642.37,0.0003315,14]
[377641584,1754472664895,-400.0,0.0003315,14]
[377641585,1754472664904,-921.58,0.0003315,14]
[377641586,1754472664914,-606.9,0.0003315,14]
[377641587,1754472664923,-639.5,0.0003315,14]
[377641588,1754472664932,-400.0,0.0003315,14]
[377641589,1754472664942,-400.0,0.0003315,14]
[377641590,1754472664951,-300.96341325,0.0003315,14]
[377641591,1754472664960,-2601.36,0.0003315,14]
[377641592,1754472664970,-408.47,0.0003315,14]
[377641593,1754472664979,-400.0,0.0003315,14]
[377641594,1754472664989,-400.0,0.0003315,14]
[377641595,1754472664999,-3015.93,0.0003315,14]
[377641596,1754472665009,-1337.97,0.0003315,14]
[377641597,1754472665019,-903.06,0.0003315,14]
[377641598,1754472665028,-400.0,0.0003315,14]
[377641599,1754472665038,-1265.66,0.0003315,14]
[377641600,1754472665049,-400.0,0.0003315,14]
[377641601,1754472665058,-514.38,0.0003315,14]
[377641602,1754472665068,-400.0,0.0003315,14]
[377641603,1754472665078,-400.0,0.0003315,14]
[377641604,1754472665087,-400.0,0.0003315,14]
[377641605,1754472665097,-400.0,0.0003315,14]
[377641606,1754472665107,-461.86,0.0003315,14]
[377641607,1754472665118,-3139.67,0.0003315,14]
[377641608,1754472665127,-859.1,0.0003315,14]
[377641609,1754472665137,-2521.62,0.0003315,14]
[377641610,1754472665147,-400.0,0.0003315,14]
[377641611,1754472665156,-400.0,0.0003315,14]
[377641612,1754472665166,-3275.14,0.0003315,14]
[377641613,1754472665177,-406.74224227,0.0003315,14]
[377641614,1754472665187,-400.0,0.0003315,14]
[377641615,1754472665196,-421.28547919,0.0003315,14]
[377641616,1754472665206,-2615.65,0.0003315,14]
[377641617,1754472665216,-400.0,0.0003315,14]
[377641618,1754472665226,-486.43,0.0003315,14]
[377641619,1754472665236,-1095.7,0.0003315,14]
[377641620,1754472665245,-1491.36,0.0003315,14]
[377641621,1754472665256,-1800.32,0.0003315,14]
[377641622,1754472665265,-400.0,0.0003315,14]
[377641623,1754472665278,-400.0,0.0003315,14]
[377641624,1754472665288,-400.0,0.0003315,14]
[377641625,1754472665298,-180.32,0.0003315,14]
[377641626,1754472665308,-1155.98,0.0003315,14]
[377641627,1754472665318,-1479.06,0.0003315,14]
[377641628,1754472665328,-400.0,0.0003315,14]
[377641629,1754472665338,-400.0,0.0003315,14]
[377641630,1754472665350,-400.0,0.0003315,14]
[377641631,1754472665360,-1233.4,0.0003315,14]
[377641632,1754472665370,-405.78,0.0003315,14]
[377641633,1754472665380,-400.0,0.0003315,14]
[377641634,1754472665390,-1802.48,0.0003315,14]
[377641635,1754472665400,-400.0,0.0003315,14]
[377641636,1754472665410,-400.0,0.0003315,14]
[377641637,1754472665419,-400.0,0.0003315,14]
[377641638,1754472665429,-402.4800845,0.0003315,14]
[377641639,1754472665439,-1286.52,0.0003315,14]
[377641640,1754472665449,-775.56,0.0003315,14]
[377641641,1754472665460,-400.0,0.0003315,14]
[377641642,1754472665470,-491.9,0.0003315,14]
[377641643,1754472665480,-1972.32,0.0003315,14]
[377641644,1754472665490,-406.28855887,0.0003315,14]
[377641645,1754472665499,-400.0,0.0003315,14]
[377641646,1754472665508,-1913.07,0.0003315,14]
[377641647,1754472665517,-400.0,0.0003315,14]
[377641648,1754472665527,-622.66,0.0003315,14]
[377641649,1754472665537,-1136.81,0.0003315,14]
[377641650,1754472665548,-587.36,0.0003315,14]
[377641651,1754472665558,-400.0,0.0003315,14]
[377641652,1754472665568,-400.0,0.0003315,14]
[377641653,1754472665578,-400.0,0.0003315,14]
[377641654,1754472665588,-400.0,0.0003315,14]
[377641655,1754472665598,-400.0,0.0003315,14]
[377641656,1754472665608,-2120.97,0.0003315,14]
[377641657,1754472665618,-400.0,0.0003315,14]
[377641658,1754472665627,-657.43,0.0003315,14]
[377641659,1754472665639,-986.68,0.0003315,14]
[377641660,1754472665648,-1860.37,0.0003315,14]
[377641661,1754472665658,-764.11,0.0003315,14]
[377641662,1754472665667,-794.64,0.0003315,14]
[377641663,1754472665677,-526.32,0.0003315,14]
[377641664,1754472665687,-3092.49,0.0003315,14]
[377641665,1754472665697,-616.85,0.0003315,14]
[377641666,1754472665707,-1944.29,0.0003315,14]
[377641667,1754472665717,-400.0,0.0003315,14]
[377641668,1754472665726,-926.25,0.0003315,14]
[377641669,1754472665736,-400.0,0.0003315,14]
[377641670,1754472665746,-400.0,0.0003315,14]
[377641671,1754472665756,-672.46,0.0003315,14]
[377641672,1754472665766,-2459.31,0.0003315,14]
[377641673,1754472665776,-473.56,0.0003315,14]
[377641674,1754472665786,-400.0,0.0003315,14]
[377641675,1754472665796,-1454.61,0.0003315,14]
[377641676,1754472665806,-400.0,0.0003315,14]
[377641677,1754472665816,-400.0,0.0003315,14]
[377641678,1754472665826,-400.0,0.0003315,14]
[377641679,1754472665835,-2770.32,0.0003315,14]
[377641680,1754472665845,-641.51,0.0003315,14]
[377641681,1754472665854,-691.08,0.0003315,14]
[377641682,1754472665865,-357.67,0.0003315,14]
[377641683,1754472665874,-848.2,0.0003315,14]
[377641684,1754472665884,-1424.95,0.0003315,14]
[377641685,1754472665893,-431.91,0.0003315,14]
[377641686,1754472665903,-3117.05,0.0003315,2]
[377641687,1754472665912,-1462.59,0.0003315,14]
[377641688,1754472665922,-2676.8,0.0003315,14]
[377641689,1754472665932,-400.0,0.0003315,14]
[377641690,1754472665942,-400.0,0.0003315,14]
[377641691,1754472665952,-584.2,0.0003315,14]
[377641692,1754472665962,-400.0,0.0003315,14]
[377641693,1754472665972,-1546.96,0.0003315,14]
[377641694,1754472665981,-1187.36,0.0003315,14]
[377641695,1754472665991,-1852.96,0.0003315,14]
[377641696,1754472666001,-524.10746082,0.0003315,14]
[377641697,1754472666010,-2478.53,0.0003315,14]
[377641698,1754472666019,-400.0,0.0003315,14]
[377641699,1754472666029,-400.0,0.0003315,14]
[377641700,1754472666038,-1625.5,0.0003315,14]
[377641701,1754472666050,-938.6,0.0003315,14]
[377641702,1754472666059,-400.0,0.0003315,14]
[377641703,1754472666069,-400.0,0.0003315,14]
[377641704,1754472666078,-400.0,0.0003315,14]
[377641705,1754472666087,-1006.08,0.0003315,14]
[377641706,1754472666097,-400.0,0.0003315,14]
[377641707,1754472666108,-400.0,0.0003315,14]
[377641708,1754472666117,-400.0,0.0003315,14]
[377641709,1754472666127,-400.0,0.0003315,14]
[377641710,1754472666142,-400.0,0.0003315,14]
[377641711,1754472666161,-400.0,0.0003315,14]
[377641712,1754472666179,-229.92710688,0.0003315,14]
[377641713,1754472666189,-1222.66,0.0003315,14]
[377641714,1754472666198,-400.0,0.0003315,14]
[377641715,1754472666207,-400.0,0.0003315,14]
[377641716,1754472666217,-1260.63,0.0003315,14]
[377641717,1754472666226,-2138.99,0.0003315,14]
[377641718,1754472666236,-400.0,0.0003315,14]
[377641719,1754472666245,-1107.02,0.0003315,14]
[377641720,1754472666255,-400.0,0.0003315,14]
[377641721,1754472666265,-1934.4,0.0003315,14]
[377641722,1754472666277,-400.0,0.0003315,14]
[377641723,1754472666287,-1833.99,0.0003315,14]
[377641724,1754472666297,-1830.51,0.0003315,14]
[377641725,1754472666307,-543.81843664,0.0003315,14]
[377641726,1754472666317,-1113.65,0.0003315,14]
[377641727,1754472666643,-2149.28,0.0003315,14]
[377641728,1754472666665,-2021.91,0.0003315,14]
[377641729,1754472666675,-400.0,0.0003315,14]
[377641730,1754472666684,-400.0,0.0003315,14]
[377641731,1754472666693,-400.0,0.0003315,14]
[377641732,1754472666702,-400.0,0.0003315,14]
[377641733,1754472666713,-400.0,0.0003315,14]
[377641734,1754472666723,-978.61,0.0003315,14]
[377641735,1754472666732,-407.41982844,0.0003315,14]
[377641736,1754472666742,-1143.73,0.0003315,14]
[377641737,1754472666753,-400.0,0.0003315,14]
[377641738,1754472666762,-2027.48,0.0003315,14]
[377641739,1754472666771,-2140.34,0.0003315,14]
[377641740,1754472666780,-400.0,0.0003315,14]
[377641741,1754472666789,-400.0,0.0003315,14]
[377641742,1754472666801,-400.0,0.0003315,14]
[377641743,1754472666810,-1983.09,0.0003315,14]
[377641744,1754472666820,-708.15,0.0003315,14]
[377641745,1754472666829,-689.94,0.0003315,14]
[377641746,1754472666839,-403.12211256,0.0003315,14]
[377641747,1754472666849,-400.0,0.0003315,14]
[377641748,1754472666859,-400.0,0.0003315,14]
[377641749,1754472666868,-1610.53,0.0003315,14]
[377641750,1754472666877,-400.0,0.0003315,14]
[377641751,1754472666887,-400.0,0.0003315,2]
[377641752,1754472666897,-529.32,0.0003315,14]
[377641753,1754472666906,-400.0,0.0003315,14]
[377641754,1754472666916,-1854.31,0.0003315,14]
[377641755,1754472666926,-1722.71,0.0003315,14]
[377641756,1754472666935,-400.0,0.0003315,14]
[377641757,1754472666945,-400.0,0.0003315,120]
[377641758,1754472666955,-400.0,0.0003315,14]
[377641759,1754472666965,-400.0,0.0003315,14]
[377641760,1754472666974,-400.0,0.0003315,14]
[377641761,1754472666984,-400.0,0.0003315,14]
[377641762,1754472666996,-400.0,0.0003315,14]
[377641763,1754472667006,-1044.72,0.0003315,14]
[377641764,1754472667016,-409.49,0.0003315,14]
[377641765,1754472667025,-1979.83,0.0003315,14]
[377641766,1754472667035,-535.78,0.0003315,14]
[377641767,1754472667046,-1315.35,0.0003315,14]
[377641768,1754472667056,-2279.73,0.0003315,14]
[377641769,1754472667066,-400.0,0.0003315,14]
[377641770,1754472667075,-400.0,0.0003315,14]
[377641771,1754472667088,-400.0,0.0003315,14]
[377641772,1754472667098,-1216.24,0.0003315,14]
[377641773,1754472667109,-1755.24,0.0003315,14]
[377641774,1754472667119,-400.0,0.0003315,14]
[377641775,1754472667128,-400.0,0.0003315,14]
[377641776,1754472667137,-2203.02,0.0003315,14]
[377641777,1754472667148,-400.0,0.0003315,14]
[377641778,1754472667158,-692.72,0.0003315,14]
[377641779,1754472667167,-400.0,0.0003315,14]
[377641780,1754472667179,-691.38,0.0003315,14]
[377641781,1754472667189,-992.76,0.0003315,14]
[377641782,1754472667200,-400.0,0.0003315,14]
[377641783,1754472667210,-400.0,0.0003315,14]
[377641784,1754472667220,-400.0,0.0003315,14]
[377641785,1754472667229,-2097.62,0.0003315,14]
[377641786,1754472667239,-628.91,0.0003315,14]
[377641787,1754472667248,-1701.27,0.0003315,14]
[377641788,1754472667258,-406.83347487,0.0003315,14]
[377641789,1754472667267,-400.0,0.0003315,14]
[377641790,1754472667281,-1810.02,0.0003315,14]
[377641791,1754472667292,-2903.24,0.0003315,14]
[377641792,1754472667301,-400.0,0.0003315,14]
[377641793,1754472667311,-400.0,0.0003315,14]
[377641794,1754472667322,-400.0,0.0003315,14]
[377641795,1754472667332,-2745.35,0.0003315,14]
[377641796,1754472667341,-400.0,0.0003315,14]
[377641797,1754472667351,-810.17,0.0003315,14]
[377641798,1754472667361,-700.93,0.0003315,14]
[377641799,1754472667370,-400.0,0.0003315,14]
[377641800,1754472667379,-1333.96,0.0003315,14]
[377641801,1754472667389,-923.07,0.0003315,14]
[377641802,1754472667399,-1226.68,0.0003315,14]
[377641803,1754472667415,-465.27,0.0003315,14]
[377641804,1754472667425,-400.0,0.0003315,14]
[377641805,1754472667436,-1145.51,0.0003315,14]
[377641806,1754472667446,-1913.66,0.0003315,14]
[377641807,1754472667455,-521.52833637,0.0003315,14]
[377641808,1754472667464,-673.17,0.0003315,14]
[377641809,1754472667474,-1512.02,0.0003315,14]
[377641810,1754472667483,-1453.65,0.0003315,14]
[377641811,1754472667493,-940.71,0.0003315,14]
[377641812,1754472667503,-400.0,0.0003315,14]
[377641813,1754472667512,-400.0,0.0003315,14]
[377641814,1754472667522,-400.0,0.0003315,14]
[377641815,1754472667531,-1636.86,0.0003315,14]
[377641816,1754472667541,-400.0,0.0003315,14]
[377641817,1754472667551,-1624.34,0.0003315,14]
[377641818,1754472667561,-400.0,0.0003315,14]
[377641819,1754472667571,-400.0,0.0003315,14]
[377641820,1754472667581,-400.0,0.0003315,14]
[377641821,1754472667590,-426.1,0.0003315,14]
[377641822,1754472667600,-1183.18,0.0003315,14]
[377641823,1754472667609,-664.11,0.0003315,14]
[377641824,1754472667619,-1056.68,0.0003315,14]
[377641825,1754472667629,-1035.63,0.0003315,14]
[377641826,1754472667638,-2800.15,0.0003315,14]
[377641827,1754472667648,-1632.35,0.00033151,2]
[377641828,1754472667657,-778.38,0.00033151,2]
[377641829,1754472667667,-796.2,0.00033151,2]
[377641830,1754472667676,-467.24,0.00033151,2]
[377641831,1754472667686,-467.24,0.00033151,2]
[377641832,1754472667695,-1190.95,0.00033151,2]
[377641833,1754472667705,-465.0,0.00033151,10]
[377641834,1754472667715,-500.0,0.00033172,30]
[377641835,1754472667724,-500.0,0.00033173,5]
[377641836,1754472667734,-150.92514156,0.00033173,3]
[377641837,1754472667744,-500.0,0.00033173,5]
[377641838,1754472667754,-500.07489405,0.00033173,5]
[377641839,1754472667763,-500.63675615,0.00033173,5]
[377641840,1754472667773,-500.42396906,0.00033173,5]
[377641841,1754472667783,-500.0,0.00033173,5]
[377641842,1754472667793,-325.24194211,0.00033173,5]
[377641843,1754472667803,-150.0,0.00033175,7]
[377641844,1754472667813,-1776.0,0.00033177,3]
[377641845,1754472667823,-152.7069915,0.00033187,15]
[377641846,1754472667832,-150.0,0.00033217,7]
[377641847,1754472667842,-1520.74717672,0.00033228,2]
[377641848,1754472667851,-150.0,0.00033245,7]
[377641849,1754472667861,-505.27078549,0.0003328,2]
[377641850,1754472667871,-505.27078549,0.0003328,2]
[377641851,1754472667880,-505.27078549,0.0003328,2]
[377641852,1754472667890,-150.0,0.00033307,7]
[377641853,1754472667899,-374.47579526,0.00033324,2]
[377641854,1754472667909,-2911.34,0.00033364,14]
[377641855,1754472667918,-500.0,0.00033365,14]
[377641856,1754472667928,-500.0,0.00033365,14]
[377641857,1754472667937,-611.03044331,0.00033365,14]
[377641858,1754472667947,-2569.7,0.00033365,14]
[377641859,1754472667956,-735.95,0.00033365,14]
[377641860,1754472667966,-150.0,0.00033397,7]
[377641861,1754472667975,-150.0,0.00033397,7]
[377641862,1754472667986,-215.74696368,0.00033397,7]
[377641863,1754472667997,-150.0,0.00033397,7]
[377641864,1754472668008,-150.0,0.00033397,7]
[377641865,1754472668018,-150.0,0.00033397,7]
[377641866,1754472668028,-150.0,0.00033397,7]
[377641867,1754472668037,-150.0,0.00033397,7]
[377641868,1754472668047,-150.0,0.00033397,7]
[377641869,1754472668058,-150.0,0.00033397,7]
[377641870,1754472668067,-150.0,0.00033397,7]
[377641871,1754472668077,-150.0,0.00033397,7]
[377641872,1754472668088,-500.0,0.00033414,3]
[377641873,1754472668097,-500.0,0.00033414,7]
[377641874,1754472668107,-500.0,0.00033414,7]
[377641875,1754472668118,-425.88686986,0.00033414,7]
[377641876,1754472668127,-150.0,0.00033414,7]
[377641877,1754472668137,-500.0,0.00033414,7]
[377641878,1754472668149,-500.0,0.00033414,7]
[377641879,1754472668161,-500.0,0.00033414,7]
[377641880,1754472668171,-500.0,0.00033414,7]
[377641881,1754472668181,-500.0,0.00033414,7]
[377641882,1754472668191,-166.95494966,0.00033414,7]
[377641883,1754472668201,-500.0,0.00033421,5]
[377641884,1754472668213,-910.8039,0.00033421,2]
[377641885,1754472668223,-437.0,0.00033423,10]
[377641886,1754472668232,-500.0,0.00033423,10]
[377641887,1754472668242,-500.0,0.00033423,10]
[377641888,1754472668254,-597.0,0.00033423,10]
[377641889,1754472668264,-500.0,0.00033423,14]
[377641890,1754472668279,-300.0,0.00033423,10]
[377641891,1754472668291,-300.0,0.00033423,10]
[377641892,1754472668301,-500.0,0.00033423,14]
[377641893,1754472668311,-300.0,0.00033423,10]
[377641894,1754472668321,-918.76,0.00033423,14]
[377641895,1754472668331,-918.76,0.00033423,14]
[377641896,1754472668341,-918.76,0.00033423,14]
[377641897,1754472668350,-918.76,0.00033423,14]
[377641898,1754472668360,-918.76,0.00033423,14]
[377641899,1754472668369,-918.76,0.00033423,14]
[377641900,1754472668381,-918.76,0.00033423,14]
[377641901,1754472668391,-918.84337573,0.00033423,14]
[377641902,1754472668402,-537.06,0.00033423,14]
[377641903,1754472668415,-537.06,0.00033423,14]
[377641904,1754472668425,-537.06,0.00033423,14]
[377641905,1754472668435,-537.06,0.00033423,14]
[377641906,1754472668444,-537.06,0.00033423,14]
[377641907,1754472668454,-540.75,0.00033423,14]
[377641908,1754472668463,-540.75,0.00033423,14]
[377641909,1754472668472,-540.75,0.00033423,14]
[377641910,1754472668483,-540.75,0.00033423,14]
[377641911,1754472668494,-540.75,0.00033423,14]
[377641912,1754472668504,-2569.7,0.00033423,14]
[377641913,1754472668514,-1112.59,0.00033423,14]
[377641914,1754472668525,-1112.59,0.00033423,14]
[377641915,1754472668535,-1112.59,0.00033423,14]
[377641916,1754472668544,-1112.59,0.00033423,14]
[377641917,1754472668554,-1112.59,0.00033423,14]
[377641918,1754472668563,-735.95,0.00033423,14]
[377641919,1754472668573,-735.95,0.00033423,14]
[377641920,1754472668583,-735.95,0.00033423,14]
[377641921,1754472668592,-2911.34,0.00033423,14]
[377641922,1754472668601,-2911.34,0.00033423,14]
[377641923,1754472668614,-2911.34,0.00033423,14]
[377641924,1754472668623,-2911.34,0.00033423,14]
[377641925,1754472668633,-2911.34,0.00033423,14]
[377641926,1754472668643,-2911.34,0.00033423,14]
[377641927,1754472668653,-2911.34,0.00033423,14]
[377641928,1754472668663,-2911.34,0.00033423,14]
[377641929,1754472668672,-2911.34102505,0.00033423,14]
[377641930,1754472668682,-500.0,0.00033423,30]
[377641931,1754472668691,-500.0,0.00033423,30]
[377641932,1754472668701,-310.65626433,0.00033423,30]
[377641933,1754472668710,-458.13893878,0.00033423,30]
[377641934,1754472668720,-500.0,0.00033424,2]
[377641935,1754472668730,-1147.0,0.00033424,2]
[377641936,1754472668739,-150.0,0.00033424,2]
[377641937,1754472668749,-500.0,0.00033424,2]
[377641938,1754472668758,-150.0,0.00033424,2]
[377641939,1754472668768,-500.0,0.00033424,2]
[377641940,1754472668777,-213.98801745,0.00033424,2]
[377641941,1754472668787,-150.0,0.00033424,2]
[377641942,1754472668798,-400.0,0.00033424,14]
[377641943,1754472668807,-400.0,0.00033424,14]
[377641944,1754472668817,-400.0,0.00033424,14]
[377641945,1754472668826,-400.0,0.00033424,14]
[377641946,1754472668835,-400.0,0.00033424,14]
[377641947,1754472668844,-400.0,0.00033424,14]
[377641948,1754472668854,-400.0,0.00033424,14]
[377641949,1754472668863,-400.0,0.00033424,14]
[377641950,1754472668874,-400.0,0.00033424,14]
[377641951,1754472668884,-400.0,0.00033424,14]
[377641952,1754472668894,-400.0,0.00033424,14]
[377641953,1754472668903,-400.0,0.00033424,14]
[377641954,1754472668912,-400.0,0.00033424,14]
[377641955,1754472668922,-400.0,0.00033424,14]
[377641956,1754472668931,-400.0,0.00033424,14]
[377641957,1754472668942,-400.0,0.00033424,14]
[377641958,1754472668951,-400.0,0.00033424,14]
[377641959,1754472668960,-400.0,0.00033424,14]
[377641960,1754472668970,-400.0,0.00033424,14]
[377641961,1754472668979,-400.0,0.00033424,14]
[377641962,1754472668988,-400.0,0.00033424,14]
[377641963,1754472668997,-400.0,0.00033424,2]
[377641964,1754472669007,-400.0,0.00033424,14]
[377641965,1754472669016,-400.0,0.00033424,14]
[377641966,1754472669026,-400.0,0.00033424,14]
[377641967,1754472669036,-400.0,0.00033424,14]
[377641968,1754472669047,-400.0,0.00033424,14]
[377641969,1754472669056,-400.0,0.00033424,14]
[377641970,1754472669069,-400.0,0.00033424,14]
[377641971,1754472669078,-400.0,0.00033424,14]
[377641972,1754472669087,-400.0,0.00033424,14]
[377641973,1754472669097,-963.88,0.00033424,14]
[377641974,1754472669106,-400.0,0.00033424,14]
[377641975,1754472669115,-400.0,0.00033424,14]
[377641976,1754472669124,-400.0,0.00033424,14]
[377641977,1754472669133,-1257.0,0.00033424,14]
[377641978,1754472669143,-400.0,0.00033424,14]
[377641979,1754472669151,-527.85,0.00033424,14]
[377641980,1754472669162,-1771.27,0.00033424,14]
[377641981,1754472669172,-1912.82,0.00033424,14]
[377641982,1754472669181,-392.13465361,0.00033424,14]
[377641983,1754472669191,-400.0,0.00033424,14]
[377641984,1754472669201,-400.0,0.00033424,14]
[377641985,1754472669211,-400.0,0.00033424,14]
[377641986,1754472669219,-400.0,0.00033424,14]
[377641987,1754472669229,-1043.82,0.00033424,14]
[377641988,1754472669238,-400.0,0.00033424,14]
[377641989,1754472669247,-191.49310835,0.00033424,14]
[377641990,1754472669256,-1370.52,0.00033424,14]
[377641991,1754472669265,-1807.99,0.00033424,14]
[377641992,1754472669277,-400.0,0.00033424,14]
[377641993,1754472669287,-400.0,0.00033424,14]
[377641994,1754472669297,-400.0,0.00033424,14]
[377641995,1754472669306,-400.0,0.00033424,14]
[377641996,1754472669316,-1119.95,0.00033424,14]
[377641997,1754472669327,-430.84,0.00033424,14]
[377641998,1754472669337,-947.09,0.00033424,2]
[377641999,1754472669346,-547.69,0.00033424,14]
[377642000,1754472669356,-792.38,0.00033424,14]
[377642001,1754472669366,-1777.48,0.00033424,14]
[377642002,1754472669377,-902.95,0.00033424,14]
[377642003,1754472669386,-1100.38,0.00033424,14]
[377642004,1754472669395,-300.0,0.00033424,14]
[377642005,1754472669405,-400.0,0.00033424,14]
[377642006,1754472669414,-400.0,0.00033424,14]
[377642007,1754472669423,-487.32,0.00033424,14]
[377642008,1754472669434,-767.45,0.00033424,14]
[377642009,1754472669445,-400.0,0.00033424,14]